[Event "Early-Titled-Tuesday-Blitz-April-23-2024"]
[Site "Chess.com"]
[Date "2024.04.23"]
[Round "6"]
[White "Lady_Nika"]
[Black "average_trans"]
[Result "1-0"]
[WhiteElo "2464"]
[BlackElo "2220"]
[TimeControl "180+1"]
[EndTime "9:05:44 PDT"]
[Termination "Lady_Nika won by checkmate"]

1. g4 {[%clk 0:02:58.8]} 1... h5 {[%clk 0:02:55.5]} 2. g5 {[%clk 0:02:55.9]}
2... g6 {[%clk 0:02:55.1]} 3. h4 {[%clk 0:02:55.9]} 3... Bg7 {[%clk 0:02:55]} 4.
Bg2 {[%clk 0:02:56.2]} 4... Nc6 {[%clk 0:02:54.9]} 5. Nh3 {[%clk 0:02:53.4]}
5... b6 {[%clk 0:02:55]} 6. e3 {[%clk 0:02:53.1]} 6... Bb7 {[%clk 0:02:55]} 7.
d4 {[%clk 0:02:53.3]} 7... e6 {[%clk 0:02:52.5]} 8. O-O {[%clk 0:02:53.1]} 8...
Qe7 {[%clk 0:02:52.4]} 9. f4 {[%clk 0:02:52.2]} 9... O-O-O {[%clk 0:02:49.6]}
10. c3 {[%clk 0:02:51.4]} 10... f6 {[%clk 0:02:49.7]} 11. b4 {[%clk 0:02:46]}
11... e5 {[%clk 0:02:49.8]} 12. d5 {[%clk 0:02:45.1]} 12... Nb8 {[%clk
0:02:49.8]} 13. a4 {[%clk 0:02:38.8]} 13... exf4 {[%clk 0:02:49.6]} 14. exf4
{[%clk 0:02:38.8]} 14... fxg5 {[%clk 0:02:49.8]} 15. fxg5 {[%clk 0:02:36.2]}
15... d6 {[%clk 0:02:39.9]} 16. a5 {[%clk 0:02:32.4]} 16... Nd7 {[%clk
0:02:39.3]} 17. axb6 {[%clk 0:02:31.6]} 17... axb6 {[%clk 0:02:38.4]} 18. Nf4
{[%clk 0:02:27.1]} 18... Ne5 {[%clk 0:02:34]} 19. Ne6 {[%clk 0:02:26.6]} 19...
Re8 {[%clk 0:02:30.8]} 20. Ra2 {[%clk 0:02:19.4]} 20... Ng4 {[%clk 0:02:30.5]}
21. Ra7 {[%clk 0:01:58.1]} 21... Be5 {[%clk 0:02:29.1]} 22. Qa4 {[%clk 0:01:53]}
22... Kb8 {[%clk 0:02:13.5]} 23. Bf4 {[%clk 0:01:45.3]} 23... Rh7 {[%clk
0:01:55.5]} 24. Bxe5 {[%clk 0:01:43.4]} 24... Nxe5 {[%clk 0:01:49.8]} 25. Nd2
{[%clk 0:01:41.4]} 25... Rf7 {[%clk 0:01:49.1]} 26. Ra1 {[%clk 0:01:41]} 26...
Kc8 {[%clk 0:01:33.7]} 27. Qb5 {[%clk 0:01:40.1]} 27... Nd7 {[%clk 0:01:24.6]}
28. Rxb7 {[%clk 0:01:34.5]} 28... Kxb7 {[%clk 0:01:23.2]} 29. Qc6+ {[%clk
0:01:34.3]} 29... Kb8 {[%clk 0:01:24.1]} 30. Qxc7# {[%clk 0:01:34.3]} 1-0

[Event "Early-Titled-Tuesday-Blitz-April-23-2024"]
[Site "Chess.com"]
[Date "2024.04.23"]
[Round "6"]
[White "adotand"]
[Black "tetrix83"]
[Result "0-1"]
[WhiteElo "2928"]
[BlackElo "2645"]
[TimeControl "180+1"]
[EndTime "9:05:46 PDT"]
[Termination "tetrix83 won by resignation"]

1. e4 {[%clk 0:03:00.9]} 1... c5 {[%clk 0:02:57.6]} 2. Nf3 {[%clk 0:03:01.1]}
2... e6 {[%clk 0:02:54.3]} 3. c3 {[%clk 0:02:57.1]} 3... Nf6 {[%clk 0:02:53.3]}
4. d3 {[%clk 0:02:54.8]} 4... Nc6 {[%clk 0:02:51.3]} 5. Nbd2 {[%clk 0:02:54.7]}
5... d5 {[%clk 0:02:51.3]} 6. Qe2 {[%clk 0:02:54.7]} 6... Qc7 {[%clk 0:02:44.2]}
7. g3 {[%clk 0:02:54.9]} 7... b6 {[%clk 0:02:11.2]} 8. Bg2 {[%clk 0:02:52.7]}
8... dxe4 {[%clk 0:02:03.7]} 9. Nxe4 {[%clk 0:02:52.6]} 9... Nxe4 {[%clk
0:02:01.6]} 10. dxe4 {[%clk 0:02:52.6]} 10... a5 {[%clk 0:01:56]} 11. e5 {[%clk
0:02:41.7]} 11... Ba6 {[%clk 0:01:52.7]} 12. Qe4 {[%clk 0:02:42.3]} 12... Rd8
{[%clk 0:01:35.9]} 13. Bf4 {[%clk 0:02:42.1]} 13... Be7 {[%clk 0:01:35]} 14. h4
{[%clk 0:02:38.3]} 14... Bd3 {[%clk 0:01:32.8]} 15. Qe3 {[%clk 0:02:37.9]} 15...
O-O {[%clk 0:01:30.8]} 16. O-O-O {[%clk 0:02:37.8]} 16... Nb4 {[%clk 0:01:27.4]}
17. b3 {[%clk 0:02:33.5]} 17... c4 {[%clk 0:01:18.8]} 18. Kb2 {[%clk 0:02:31.4]}
18... Nc2 {[%clk 0:01:14.7]} 19. Qd2 {[%clk 0:02:28.2]} 19... Ba3+ {[%clk
0:01:12]} 20. Kb1 {[%clk 0:02:28.5]} 20... Bg6 {[%clk 0:00:53.7]} 21. Qxc2
{[%clk 0:02:20.5]} 21... cxb3 {[%clk 0:00:46]} 22. Qxg6 {[%clk 0:02:08.3]} 22...
hxg6 {[%clk 0:00:40.3]} 23. Bd2 {[%clk 0:02:08.5]} 23... Qc4 {[%clk 0:00:35.1]}
24. Nd4 {[%clk 0:02:07.4]} 24... Rxd4 {[%clk 0:00:31.2]} 25. Bf1 {[%clk
0:02:05.2]} 25... bxa2+ {[%clk 0:00:29]} 26. Ka1 {[%clk 0:02:05.5]} 26... Qb3
{[%clk 0:00:29.1]} 0-1

[Event "Early-Titled-Tuesday-Blitz-April-23-2024"]
[Site "Chess.com"]
[Date "2024.04.23"]
[Round "6"]
[White "Lily_Schirmbeck"]
[Black "NM_Antelacus"]
[Result "0-1"]
[WhiteElo "1558"]
[BlackElo "2266"]
[TimeControl "180+1"]
[EndTime "9:05:53 PDT"]
[Termination "NM_Antelacus won by resignation"]

1. e4 {[%clk 0:03:00.9]} 1... c5 {[%clk 0:02:59.8]} 2. Be2 {[%clk 0:03:00.7]}
2... Nc6 {[%clk 0:02:59]} 3. d3 {[%clk 0:03:01.2]} 3... g6 {[%clk 0:02:59]} 4.
f4 {[%clk 0:03:01.7]} 4... Bg7 {[%clk 0:02:58.5]} 5. Nf3 {[%clk 0:03:02.2]} 5...
d6 {[%clk 0:02:57.7]} 6. c3 {[%clk 0:03:02.6]} 6... Nf6 {[%clk 0:02:56.3]} 7.
O-O {[%clk 0:03:02.6]} 7... O-O {[%clk 0:02:56]} 8. Kh1 {[%clk 0:03:03.1]} 8...
Rb8 {[%clk 0:02:54]} 9. Be3 {[%clk 0:03:02.5]} 9... b5 {[%clk 0:02:53.2]} 10. a3
{[%clk 0:03:02.9]} 10... a5 {[%clk 0:02:52.4]} 11. Nbd2 {[%clk 0:02:58.1]} 11...
Qc7 {[%clk 0:02:48.4]} 12. g3 {[%clk 0:02:55.8]} 12... b4 {[%clk 0:02:43.4]} 13.
axb4 {[%clk 0:02:53.7]} 13... axb4 {[%clk 0:02:43.5]} 14. d4 {[%clk 0:02:47.4]}
14... Ng4 {[%clk 0:02:36.1]} 15. Bg1 {[%clk 0:02:47.1]} 15... cxd4 {[%clk
0:02:34.9]} 16. cxd4 {[%clk 0:02:44.2]} 16... Qb7 {[%clk 0:02:14.3]} 17. d5
{[%clk 0:02:30.9]} 17... Nd8 {[%clk 0:02:06]} 18. Qb3 {[%clk 0:02:26.5]} 18...
Qd7 {[%clk 0:01:50.8]} 19. Ra7 {[%clk 0:02:17.4]} 19... Rb7 {[%clk 0:01:50.4]}
20. Rfa1 {[%clk 0:02:15.1]} 20... e6 {[%clk 0:01:33.1]} 21. Rxb7 {[%clk
0:02:01.1]} 21... Nxb7 {[%clk 0:01:31.6]} 22. Qxb4 {[%clk 0:01:56.5]} 22... exd5
{[%clk 0:01:27.8]} 23. exd5 {[%clk 0:01:52.6]} 23... Re8 {[%clk 0:01:21.7]} 24.
Bb5 {[%clk 0:01:48.4]} 24... Qd8 {[%clk 0:01:17.4]} 25. Bxe8 {[%clk 0:01:47.9]}
25... Qxe8 {[%clk 0:01:17.7]} 26. Re1 {[%clk 0:01:47.7]} 26... Qd8 {[%clk
0:01:14.4]} 27. Ne4 {[%clk 0:01:44.8]} 27... Bf5 {[%clk 0:01:10.2]} 28. Qxb7
{[%clk 0:01:41.2]} 28... Qa5 {[%clk 0:01:03.5]} 29. b4 {[%clk 0:01:38.3]} 29...
Qa2 {[%clk 0:01:02]} 30. Qc8+ {[%clk 0:01:35.1]} 30... Bxc8 {[%clk 0:00:59.9]}
0-1

[Event "Early-Titled-Tuesday-Blitz-April-23-2024"]
[Site "Chess.com"]
[Date "2024.04.23"]
[Round "6"]
[White "Chernov_Alexander_A"]
[Black "Barmen_EV"]
[Result "0-1"]
[WhiteElo "2259"]
[BlackElo "2545"]
[TimeControl "180+1"]
[EndTime "9:06:03 PDT"]
[Termination "Barmen_EV won on time"]

1. d4 {[%clk 0:02:26.2]} 1... f5 {[%clk 0:02:58.1]} 2. Nc3 {[%clk 0:02:19.4]}
2... Nf6 {[%clk 0:02:58]} 3. Bg5 {[%clk 0:02:17.9]} 3... d5 {[%clk 0:02:57.9]}
4. e3 {[%clk 0:02:15.8]} 4... Be6 {[%clk 0:02:57.4]} 5. Bxf6 {[%clk 0:02:15.3]}
5... exf6 {[%clk 0:02:58.3]} 6. Bd3 {[%clk 0:02:13.9]} 6... Qd7 {[%clk
0:02:58.4]} 7. h4 {[%clk 0:02:11.6]} 7... Nc6 {[%clk 0:02:57.9]} 8. a3 {[%clk
0:02:09.1]} 8... h5 {[%clk 0:02:55.6]} 9. Nge2 {[%clk 0:02:08.4]} 9... g6 {[%clk
0:02:54.5]} 10. Nf4 {[%clk 0:02:08.3]} 10... Bf7 {[%clk 0:02:54.8]} 11. Qf3
{[%clk 0:02:06.2]} 11... O-O-O {[%clk 0:02:55.4]} 12. b3 {[%clk 0:01:58.9]}
12... Kb8 {[%clk 0:02:55.1]} 13. g3 {[%clk 0:01:53.3]} 13... g5 {[%clk 0:02:55]}
14. Ng2 {[%clk 0:01:52.1]} 14... f4 {[%clk 0:02:51.5]} 15. gxf4 {[%clk
0:01:49.3]} 15... g4 {[%clk 0:02:52.1]} 16. Qd1 {[%clk 0:01:40]} 16... f5 {[%clk
0:02:52.3]} 17. Ne2 {[%clk 0:01:33]} 17... Bg7 {[%clk 0:02:49.2]} 18. Ng3 {[%clk
0:01:25.1]} 18... Bg6 {[%clk 0:02:47]} 19. c4 {[%clk 0:01:20.1]} 19... dxc4
{[%clk 0:02:46.4]} 20. bxc4 {[%clk 0:01:17.9]} 20... Nxd4 {[%clk 0:02:46.1]} 21.
exd4 {[%clk 0:01:11.6]} 21... Qxd4 {[%clk 0:02:47]} 22. Rb1 {[%clk 0:00:38.2]}
22... Qxd3 {[%clk 0:02:39.2]} 23. Qxd3 {[%clk 0:00:28.8]} 23... Rxd3 {[%clk
0:02:40.1]} 24. O-O {[%clk 0:00:26.5]} 24... Rxa3 {[%clk 0:02:40.4]} 25. Rfe1
{[%clk 0:00:24.8]} 25... Bd4 {[%clk 0:02:38.1]} 26. Re6 {[%clk 0:00:23]} 26...
Rxg3 {[%clk 0:02:32.5]} 27. Rxg6 {[%clk 0:00:19.3]} 27... Rf3 {[%clk 0:02:33]}
28. Rd1 {[%clk 0:00:10.8]} 28... Bxf2+ {[%clk 0:02:31.3]} 29. Kf1 {[%clk
0:00:02.3]} 29... Bc5+ {[%clk 0:02:31.9]} 30. Ke2 {[%clk 0:00:01.1]} 30... Rf2+
{[%clk 0:02:31.9]} 0-1

[Event "Early-Titled-Tuesday-Blitz-April-23-2024"]
[Site "Chess.com"]
[Date "2024.04.23"]
[Round "6"]
[White "jefferyx"]
[Black "Byniolus"]
[Result "1-0"]
[WhiteElo "3104"]
[BlackElo "2838"]
[TimeControl "180+1"]
[EndTime "9:06:09 PDT"]
[Termination "jefferyx won by resignation"]

1. c4 {[%clk 0:03:00.9]} 1... c6 {[%clk 0:02:57.7]} 2. e4 {[%clk 0:03:00.8]}
2... d5 {[%clk 0:02:58.1]} 3. exd5 {[%clk 0:03:01.7]} 3... cxd5 {[%clk 0:02:59]}
4. d4 {[%clk 0:03:02.1]} 4... Nf6 {[%clk 0:02:59.1]} 5. Nc3 {[%clk 0:03:02.8]}
5... e6 {[%clk 0:02:59.6]} 6. Nf3 {[%clk 0:03:02.7]} 6... Bb4 {[%clk 0:02:59.7]}
7. cxd5 {[%clk 0:03:03]} 7... exd5 {[%clk 0:02:59.7]} 8. Bd3 {[%clk 0:03:00.7]}
8... O-O {[%clk 0:02:58.9]} 9. O-O {[%clk 0:03:00.9]} 9... Bg4 {[%clk
0:02:59.2]} 10. h3 {[%clk 0:03:00.6]} 10... Bh5 {[%clk 0:02:58.8]} 11. Bg5
{[%clk 0:03:00.1]} 11... Bxc3 {[%clk 0:02:59.1]} 12. bxc3 {[%clk 0:03:00.9]}
12... Nbd7 {[%clk 0:02:59.6]} 13. c4 {[%clk 0:02:49.3]} 13... dxc4 {[%clk
0:02:57.2]} 14. Bxc4 {[%clk 0:02:50.2]} 14... Nb6 {[%clk 0:02:52.7]} 15. Bb3
{[%clk 0:02:50.1]} 15... h6 {[%clk 0:02:47.4]} 16. Bh4 {[%clk 0:02:50.3]} 16...
Bxf3 {[%clk 0:02:40.2]} 17. Qxf3 {[%clk 0:02:49.8]} 17... Qxd4 {[%clk
0:02:40.5]} 18. Bxf6 {[%clk 0:02:49.6]} 18... Qxf6 {[%clk 0:02:40.6]} 19. Qxb7
{[%clk 0:02:49.2]} 19... a5 {[%clk 0:02:24.8]} 20. Rac1 {[%clk 0:02:41.1]} 20...
Rfb8 {[%clk 0:02:15.1]} 21. Qe4 {[%clk 0:02:37.9]} 21... a4 {[%clk 0:02:03.7]}
22. Rc6 {[%clk 0:02:36.2]} 22... Qd8 {[%clk 0:01:26.4]} 23. Bc2 {[%clk
0:02:36.1]} 23... g6 {[%clk 0:01:18.1]} 24. Rxg6+ {[%clk 0:02:35.8]} 24... fxg6
{[%clk 0:01:17.9]} 25. Qxg6+ {[%clk 0:02:36.7]} 25... Kf8 {[%clk 0:01:16.5]} 26.
Qf5+ {[%clk 0:02:21.8]} 26... Kg7 {[%clk 0:01:13]} 27. Qh7+ {[%clk 0:02:18.6]}
27... Kf8 {[%clk 0:01:12.9]} 28. Qf5+ {[%clk 0:01:57.6]} 28... Kg7 {[%clk
0:01:10.8]} 29. Qg6+ {[%clk 0:01:57.9]} 29... Kf8 {[%clk 0:01:10.9]} 30. Qxh6+
{[%clk 0:01:50.5]} 30... Kf7 {[%clk 0:00:59.8]} 31. Bg6+ {[%clk 0:01:40.2]}
31... Kf6 {[%clk 0:00:56]} 32. Bh5+ {[%clk 0:01:32.9]} 32... Ke5 {[%clk
0:00:53.2]} 33. Re1+ {[%clk 0:01:32.7]} 1-0

[Event "Early-Titled-Tuesday-Blitz-April-23-2024"]
[Site "Chess.com"]
[Date "2024.04.23"]
[Round "6"]
[White "L4ncer"]
[Black "ELPRIMO0O0"]
[Result "1/2-1/2"]
[WhiteElo "2373"]
[BlackElo "2642"]
[TimeControl "180+1"]
[EndTime "9:06:15 PDT"]
[Termination "Game drawn by repetition"]

1. e4 {[%clk 0:03:00.9]} 1... c5 {[%clk 0:02:59.9]} 2. Nf3 {[%clk 0:03:00.6]}
2... Nc6 {[%clk 0:03:00.5]} 3. Bb5 {[%clk 0:03:00.3]} 3... g6 {[%clk 0:02:58.8]}
4. Bxc6 {[%clk 0:03:00]} 4... bxc6 {[%clk 0:02:59.7]} 5. O-O {[%clk 0:02:53.3]}
5... Bg7 {[%clk 0:03:00.3]} 6. e5 {[%clk 0:02:53.3]} 6... d6 {[%clk 0:02:58]} 7.
Re1 {[%clk 0:02:50.3]} 7... Bg4 {[%clk 0:02:55.8]} 8. h3 {[%clk 0:02:49.8]} 8...
Bxf3 {[%clk 0:02:46.2]} 9. Qxf3 {[%clk 0:02:49.7]} 9... Bxe5 {[%clk 0:02:40]}
10. Qxc6+ {[%clk 0:02:47.3]} 10... Kf8 {[%clk 0:02:40.5]} 11. c3 {[%clk
0:02:37.8]} 11... Rc8 {[%clk 0:02:38.8]} 12. Qe4 {[%clk 0:02:35.3]} 12... Nf6
{[%clk 0:02:38]} 13. Qh4 {[%clk 0:02:33.1]} 13... d5 {[%clk 0:02:20.9]} 14. d4
{[%clk 0:02:32.4]} 14... cxd4 {[%clk 0:02:21.3]} 15. cxd4 {[%clk 0:02:32.3]}
15... Bd6 {[%clk 0:02:21.2]} 16. Bh6+ {[%clk 0:02:31.7]} 16... Kg8 {[%clk
0:02:21.7]} 17. Nc3 {[%clk 0:02:30]} 17... e6 {[%clk 0:02:20]} 18. Rac1 {[%clk
0:02:12.5]} 18... Bf8 {[%clk 0:02:15.5]} 19. Bxf8 {[%clk 0:02:00.8]} 19... Kxf8
{[%clk 0:02:15.1]} 20. Nb5 {[%clk 0:01:59.4]} 20... Kg7 {[%clk 0:02:09]} 21. Qf4
{[%clk 0:01:51.5]} 21... Qb6 {[%clk 0:02:04.2]} 22. Nc7 {[%clk 0:01:27.7]} 22...
Qxb2 {[%clk 0:00:52.3]} 23. Nxe6+ {[%clk 0:01:26.4]} 23... fxe6 {[%clk
0:00:50.4]} 24. Rc7+ {[%clk 0:01:26.2]} 24... Rxc7 {[%clk 0:00:49.6]} 25. Qxc7+
{[%clk 0:01:26]} 25... Kh6 {[%clk 0:00:48.8]} 26. Qf4+ {[%clk 0:01:25.8]} 26...
Kg7 {[%clk 0:00:49.4]} 27. Qc7+ {[%clk 0:01:25.8]} 27... Kh6 {[%clk 0:00:40.3]}
28. Qf4+ {[%clk 0:01:25.4]} 28... Kg7 {[%clk 0:00:40.3]} 29. Qc7+ {[%clk
0:01:25.5]} 1/2-1/2

[Event "Early-Titled-Tuesday-Blitz-April-23-2024"]
[Site "Chess.com"]
[Date "2024.04.23"]
[Round "6"]
[White "carloseduar100"]
[Black "SmirnovTimofey2000"]
[Result "0-1"]
[WhiteElo "2210"]
[BlackElo "1989"]
[TimeControl "180+1"]
[EndTime "9:06:15 PDT"]
[Termination "SmirnovTimofey2000 won by resignation"]

1. g3 {[%clk 0:03:00.3]} 1... d5 {[%clk 0:02:57.9]} 2. Bg2 {[%clk 0:03:01.1]}
2... Bf5 {[%clk 0:02:57.6]} 3. Nf3 {[%clk 0:02:57.5]} 3... e6 {[%clk 0:02:57.8]}
4. O-O {[%clk 0:02:48.6]} 4... h6 {[%clk 0:02:57.8]} 5. d4 {[%clk 0:02:32.2]}
5... Nf6 {[%clk 0:02:56.9]} 6. Nbd2 {[%clk 0:02:32]} 6... Be7 {[%clk 0:02:56.9]}
7. c3 {[%clk 0:02:32.5]} 7... O-O {[%clk 0:02:56]} 8. Re1 {[%clk 0:02:33.4]}
8... c6 {[%clk 0:02:55.8]} 9. Ne5 {[%clk 0:02:33.6]} 9... Nbd7 {[%clk
0:02:54.8]} 10. Nxd7 {[%clk 0:02:33.2]} 10... Qxd7 {[%clk 0:02:53.6]} 11. e4
{[%clk 0:02:32.9]} 11... dxe4 {[%clk 0:02:50.4]} 12. Nxe4 {[%clk 0:02:33.8]}
12... Nxe4 {[%clk 0:02:49.3]} 13. Bxe4 {[%clk 0:02:34.7]} 13... Bxe4 {[%clk
0:02:48.2]} 14. Rxe4 {[%clk 0:02:34.5]} 14... Qd5 {[%clk 0:02:39.8]} 15. Re5
{[%clk 0:02:34.7]} 15... Qd6 {[%clk 0:02:34.9]} 16. a4 {[%clk 0:02:31.2]} 16...
Bf6 {[%clk 0:02:34.6]} 17. Re2 {[%clk 0:02:29.1]} 17... a5 {[%clk 0:02:32.9]}
18. b3 {[%clk 0:02:29.2]} 18... Rfd8 {[%clk 0:02:26.9]} 19. Qd3 {[%clk
0:02:26.1]} 19... Qd5 {[%clk 0:02:20.9]} 20. Bb2 {[%clk 0:02:24.2]} 20... Qxb3
{[%clk 0:02:15.2]} 21. h4 {[%clk 0:02:18.1]} 21... Bxd4 {[%clk 0:02:02.9]} 22.
Rd1 {[%clk 0:02:12.5]} 22... Bf6 {[%clk 0:02:01.5]} 23. Qxd8+ {[%clk 0:02:03]}
23... Rxd8 {[%clk 0:02:02.4]} 24. Rde1 {[%clk 0:01:59.5]} 24... Rd1 {[%clk
0:01:59.5]} 25. Bc1 {[%clk 0:01:53.4]} 25... Rxe1+ {[%clk 0:01:55]} 26. Rxe1
{[%clk 0:01:54.2]} 26... Qxc3 {[%clk 0:01:54.4]} 27. Rd1 {[%clk 0:01:53.8]}
27... Qc2 {[%clk 0:01:49.9]} 28. Rf1 {[%clk 0:01:51.3]} 28... Qxa4 {[%clk
0:01:42.9]} 29. Be3 {[%clk 0:01:45.5]} 29... Bd4 {[%clk 0:01:35.7]} 30. Bf4
{[%clk 0:01:40]} 30... e5 {[%clk 0:01:34.4]} 31. Bc1 {[%clk 0:01:39.6]} 31...
Qc2 {[%clk 0:01:30.4]} 32. Ba3 {[%clk 0:01:39.3]} 32... b5 {[%clk 0:01:28.3]}
33. Bd6 {[%clk 0:01:38.9]} 33... b4 {[%clk 0:01:26.3]} 34. Kg2 {[%clk
0:01:38.8]} 34... b3 {[%clk 0:01:25.6]} 35. Kh3 {[%clk 0:01:38.3]} 35... b2
{[%clk 0:01:25.4]} 36. f4 {[%clk 0:01:38.4]} 36... b1=Q {[%clk 0:01:22.1]} 37.
Rf3 {[%clk 0:01:37.5]} 37... Qh1+ {[%clk 0:01:12.6]} 0-1

[Event "Early-Titled-Tuesday-Blitz-April-23-2024"]
[Site "Chess.com"]
[Date "2024.04.23"]
[Round "6"]
[White "K_A_S_T_O_R"]
[Black "MVM2008"]
[Result "1-0"]
[WhiteElo "2855"]
[BlackElo "2515"]
[TimeControl "180+1"]
[EndTime "9:06:16 PDT"]
[Termination "K_A_S_T_O_R won by resignation"]

1. e4 {[%clk 0:03:00.9]} 1... e5 {[%clk 0:02:53.7]} 2. Nf3 {[%clk 0:03:00.3]}
2... Nf6 {[%clk 0:02:54.3]} 3. d3 {[%clk 0:02:58.6]} 3... Bc5 {[%clk 0:02:53.6]}
4. Be2 {[%clk 0:02:57.9]} 4... Nc6 {[%clk 0:02:53.4]} 5. O-O {[%clk 0:02:57.8]}
5... d6 {[%clk 0:02:54.1]} 6. c3 {[%clk 0:02:58]} 6... Bg4 {[%clk 0:02:53.8]} 7.
h3 {[%clk 0:02:57]} 7... Be6 {[%clk 0:02:54]} 8. d4 {[%clk 0:02:56.5]} 8... exd4
{[%clk 0:02:48.5]} 9. cxd4 {[%clk 0:02:56.5]} 9... Bb6 {[%clk 0:02:45.2]} 10. d5
{[%clk 0:02:56.4]} 10... Bxh3 {[%clk 0:02:44.6]} 11. gxh3 {[%clk 0:02:47.2]}
11... Nxe4 {[%clk 0:02:27.2]} 12. dxc6 {[%clk 0:02:43.3]} 12... bxc6 {[%clk
0:02:22.6]} 13. Qa4 {[%clk 0:02:35.5]} 13... Ng3 {[%clk 0:02:18.6]} 14. Qxc6+
{[%clk 0:02:33.3]} 14... Kf8 {[%clk 0:02:16.3]} 15. Re1 {[%clk 0:02:29.8]} 15...
d5 {[%clk 0:02:05.4]} 16. Bd3 {[%clk 0:02:24.6]} 16... Rb8 {[%clk 0:01:46.7]}
17. Kg2 {[%clk 0:02:17.1]} 17... Nh5 {[%clk 0:01:41.8]} 18. Bg5 {[%clk
0:02:10.6]} 18... Qc8 {[%clk 0:01:37.7]} 19. Nc3 {[%clk 0:02:05.9]} 19... h6
{[%clk 0:01:36.4]} 20. Bd2 {[%clk 0:02:03.7]} 20... g5 {[%clk 0:01:18.7]} 21.
Ne5 {[%clk 0:01:52.8]} 21... Bxf2 {[%clk 0:00:58.5]} 22. Rf1 {[%clk 0:01:44.5]}
22... Nf4+ {[%clk 0:00:47.9]} 23. Bxf4 {[%clk 0:01:43.4]} 23... gxf4 {[%clk
0:00:48.8]} 24. Nd7+ {[%clk 0:01:35]} 24... Ke7 {[%clk 0:00:45.8]} 25. Rae1+
{[%clk 0:01:32.5]} 25... Be3 {[%clk 0:00:44.7]} 26. Nxd5+ {[%clk 0:01:30.8]}
26... Kd8 {[%clk 0:00:39.3]} 27. Qf6+ {[%clk 0:01:26.9]} 27... Kxd7 {[%clk
0:00:38.9]} 28. Bf5+ {[%clk 0:01:25.4]} 1-0

[Event "Early-Titled-Tuesday-Blitz-April-23-2024"]
[Site "Chess.com"]
[Date "2024.04.23"]
[Round "6"]
[White "BozeKat"]
[Black "BashirovKemal"]
[Result "0-1"]
[WhiteElo "2109"]
[BlackElo "2718"]
[TimeControl "180+1"]
[EndTime "9:06:16 PDT"]
[Termination "BashirovKemal won by resignation"]

1. d4 {[%clk 0:02:57.3]} 1... Nf6 {[%clk 0:02:59.5]} 2. c4 {[%clk 0:02:56.8]}
2... e6 {[%clk 0:03:00]} 3. Nf3 {[%clk 0:02:56.1]} 3... b6 {[%clk 0:03:00]} 4.
g3 {[%clk 0:02:54.6]} 4... Ba6 {[%clk 0:03:00.5]} 5. b3 {[%clk 0:02:53.9]} 5...
Bb4+ {[%clk 0:03:00.6]} 6. Bd2 {[%clk 0:02:52.4]} 6... Be7 {[%clk 0:03:01.2]} 7.
Bg2 {[%clk 0:02:52.3]} 7... c6 {[%clk 0:02:59.9]} 8. O-O {[%clk 0:02:52.3]} 8...
O-O {[%clk 0:02:59.5]} 9. Qc2 {[%clk 0:02:47.1]} 9... d5 {[%clk 0:02:58]} 10.
Bf4 {[%clk 0:02:33.2]} 10... Nbd7 {[%clk 0:02:54.8]} 11. Ne5 {[%clk 0:02:22.7]}
11... Nxe5 {[%clk 0:02:50.4]} 12. Bxe5 {[%clk 0:02:23.2]} 12... Nd7 {[%clk
0:02:48.8]} 13. Bf4 {[%clk 0:02:18.3]} 13... Bf6 {[%clk 0:02:45]} 14. Rd1 {[%clk
0:02:16.3]} 14... Rc8 {[%clk 0:02:41.6]} 15. Na3 {[%clk 0:02:01.6]} 15... Qe7
{[%clk 0:02:39.3]} 16. Qb2 {[%clk 0:01:38.8]} 16... e5 {[%clk 0:02:37.9]} 17.
dxe5 {[%clk 0:01:11.7]} 17... Nxe5 {[%clk 0:02:37.7]} 18. Qc1 {[%clk 0:00:59.4]}
18... dxc4 {[%clk 0:02:31.9]} 19. bxc4 {[%clk 0:00:47.4]} 19... Qc5 {[%clk
0:02:27.2]} 20. Be3 {[%clk 0:00:39.1]} 20... Qe7 {[%clk 0:02:21]} 21. Bd4 {[%clk
0:00:30.1]} 21... Rfd8 {[%clk 0:02:08.2]} 22. Bb2 {[%clk 0:00:28.4]} 22... Rxd1+
{[%clk 0:02:04.2]} 23. Qxd1 {[%clk 0:00:29.3]} 23... Nf3+ {[%clk 0:02:04.4]} 24.
Bxf3 {[%clk 0:00:20.7]} 24... Bxb2 {[%clk 0:02:03.9]} 25. Qa4 {[%clk 0:00:08.7]}
25... Qxa3 {[%clk 0:01:51.5]} 0-1

[Event "Early-Titled-Tuesday-Blitz-April-23-2024"]
[Site "Chess.com"]
[Date "2024.04.23"]
[Round "6"]
[White "dontcatchmeifyoucant"]
[Black "DanielNaroditsky"]
[Result "0-1"]
[WhiteElo "2369"]
[BlackElo "2995"]
[TimeControl "180+1"]
[EndTime "9:06:18 PDT"]
[Termination "DanielNaroditsky won by resignation"]

1. e4 {[%clk 0:03:00.9]} 1... c5 {[%clk 0:02:58.2]} 2. Nf3 {[%clk 0:03:00.7]}
2... d6 {[%clk 0:02:58.2]} 3. d4 {[%clk 0:02:59.4]} 3... cxd4 {[%clk 0:02:59.1]}
4. Nxd4 {[%clk 0:03:00.2]} 4... Nf6 {[%clk 0:03:00]} 5. f3 {[%clk 0:03:00]} 5...
a6 {[%clk 0:03:00.9]} 6. c4 {[%clk 0:02:59.8]} 6... e5 {[%clk 0:03:01.8]} 7. Nc2
{[%clk 0:03:00]} 7... Be7 {[%clk 0:03:02.5]} 8. Nc3 {[%clk 0:03:00.6]} 8... O-O
{[%clk 0:03:03.4]} 9. Be3 {[%clk 0:03:01.3]} 9... Be6 {[%clk 0:03:04.3]} 10. Be2
{[%clk 0:03:01.7]} 10... Nbd7 {[%clk 0:03:05.2]} 11. O-O {[%clk 0:03:01.9]}
11... Rc8 {[%clk 0:03:06.1]} 12. Nd5 {[%clk 0:03:02]} 12... b5 {[%clk
0:03:05.5]} 13. Nxe7+ {[%clk 0:02:51.3]} 13... Qxe7 {[%clk 0:03:06.4]} 14. cxb5
{[%clk 0:02:51.9]} 14... axb5 {[%clk 0:03:07.3]} 15. Bxb5 {[%clk 0:02:52.5]}
15... d5 {[%clk 0:02:58.7]} 16. exd5 {[%clk 0:02:42]} 16... Nxd5 {[%clk
0:02:59.6]} 17. Bf2 {[%clk 0:02:35.6]} 17... Nf4 {[%clk 0:02:46.4]} 18. Ne3
{[%clk 0:02:25.2]} 18... Nc5 {[%clk 0:02:42]} 19. Qb1 {[%clk 0:01:34.3]} 19...
Qg5 {[%clk 0:02:34.2]} 20. Kh1 {[%clk 0:01:30.3]} 20... Rfd8 {[%clk 0:02:27.7]}
21. Rd1 {[%clk 0:01:27.4]} 21... Rxd1+ {[%clk 0:02:16.1]} 22. Qxd1 {[%clk
0:01:26.9]} 22... Rd8 {[%clk 0:02:16.6]} 23. Qc2 {[%clk 0:01:21.6]} 23... e4
{[%clk 0:02:15.6]} 24. fxe4 {[%clk 0:01:13.8]} 24... h5 {[%clk 0:02:14]} 25. Bf1
{[%clk 0:01:10.8]} 25... Ncd3 {[%clk 0:02:12.3]} 26. Bg3 {[%clk 0:00:57.1]}
26... h4 {[%clk 0:02:11.6]} 27. Bxf4 {[%clk 0:00:54.8]} 27... Qxf4 {[%clk
0:02:12.5]} 28. Bxd3 {[%clk 0:00:46.7]} 28... Qxe3 {[%clk 0:02:11.2]} 29. Bc4
{[%clk 0:00:46.9]} 29... Rd2 {[%clk 0:02:10.6]} 30. Qb3 {[%clk 0:00:34.8]} 30...
Qf2 {[%clk 0:02:10.6]} 31. Rg1 {[%clk 0:00:27.1]} 31... h3 {[%clk 0:02:07.8]}
32. Qb8+ {[%clk 0:00:26.8]} 32... Kh7 {[%clk 0:02:06.4]} 33. Bf1 {[%clk
0:00:27.3]} 33... Rd1 {[%clk 0:02:02.5]} 34. Qg3 {[%clk 0:00:20.7]} 34... Rxf1
{[%clk 0:02:02.2]} 35. Qxf2 {[%clk 0:00:20.1]} 35... Rxf2 {[%clk 0:02:03.1]} 36.
gxh3 {[%clk 0:00:20.5]} 36... Rxb2 {[%clk 0:02:02.6]} 0-1